[Event "Titled Tuesday Blitz July 25 Late 2023"]
[White "Ordekalog"]
[Black "Chlpik, Martin"]
[BlackFideId "14923351"]
[WhiteElo "2499"]
[BlackElo "2223"]
[Result "1-0"]
[Round "5"]
[TimeControl "180+2"]
[Date "2023.07.25"]
[WhiteClock "0:00:20"]
[BlackClock "0:00:00"]
[Board "110"]

1. e4 {[%clk 0:02:54]}  e6 {[%clk 0:03:00]} 2. Bb5 {[%clk 0:02:53]}  a6 {[%clk 0:02:56]} 3. Ba4 {[%clk 0:02:52]}  b5 {[%clk 0:02:55]} 4. Bb3 {[%clk 0:02:52]}  Bb7 {[%clk 0:02:56]} 5. d3 {[%clk 0:02:52]}  g6 {[%clk 0:02:50]} 6. Nf3 {[%clk 0:02:50]}  Bg7 {[%clk 0:02:50]} 7. O-O {[%clk 0:02:49]}  Ne7 {[%clk 0:02:51]} 8. c3 {[%clk 0:02:41]}  O-O {[%clk 0:02:51]} 9. Be3 {[%clk 0:02:37]}  d6 {[%clk 0:02:50]} 10. Qd2 {[%clk 0:02:36]}  Nd7 {[%clk 0:02:50]} 11. Bh6 {[%clk 0:02:36]}  c5 {[%clk 0:02:50]} 12. Na3 {[%clk 0:02:33]}  Ne5 {[%clk 0:02:43]} 13. Nxe5 {[%clk 0:02:31]}  dxe5 {[%clk 0:02:43]} 14. Rad1 {[%clk 0:02:25]}  Qd6 {[%clk 0:02:41]} 15. Nc2 {[%clk 0:02:01]}  Rfd8 {[%clk 0:02:41]} 16. Bxg7 {[%clk 0:02:00]}  Kxg7 {[%clk 0:02:40]} 17. Qe3 {[%clk 0:01:52]}  c4 {[%clk 0:02:34]} 18. dxc4 {[%clk 0:01:50]}  Qxd1 {[%clk 0:02:34]} 19. Rxd1 {[%clk 0:01:51]}  Rxd1+ {[%clk 0:02:33]} 20. Ne1 {[%clk 0:01:52]}  Rb1 {[%clk 0:02:24]} 21. h4 {[%clk 0:01:42]}  Rd8 {[%clk 0:02:23]} 22. h5 {[%clk 0:01:41]}  h6 {[%clk 0:02:19]} 23. hxg6 {[%clk 0:01:40]}  Nxg6 {[%clk 0:02:18]} 24. cxb5 {[%clk 0:01:40]}  axb5 {[%clk 0:02:08]} 25. Kh2 {[%clk 0:01:36]}  Rxb2 {[%clk 0:02:05]} 26. Qb6 {[%clk 0:01:33]}  Rd7 {[%clk 0:01:44]} 27. Qxb5 {[%clk 0:01:33]}  Re7 {[%clk 0:01:32]} 28. Nd3 {[%clk 0:01:32]}  Rd2 {[%clk 0:01:26]} 29. Nxe5 {[%clk 0:01:31]}  Bxe4 {[%clk 0:01:04]} 30. Nxg6 {[%clk 0:01:22]}  Kxg6 {[%clk 0:01:03]} 31. Qb4 {[%clk 0:01:18]}  Bc6 {[%clk 0:00:28]} 32. Qxe7 {[%clk 0:01:13]}  Rxf2 {[%clk 0:00:27]} 33. Qc5 {[%clk 0:01:09]}  Rxg2+ {[%clk 0:00:27]} 34. Kh3 {[%clk 0:01:09]}  Be4 {[%clk 0:00:22]} 35. Bd1 {[%clk 0:00:57]}  Rg5 {[%clk 0:00:13]} 36. Qd4 {[%clk 0:00:55]}  f5 {[%clk 0:00:11]} 37. Qh8 {[%clk 0:00:45]}  f4 {[%clk 0:00:07]} 38. Qe8+ {[%clk 0:00:41]}  Kf6 {[%clk 0:00:06]} 39. Bh5 {[%clk 0:00:39]}  Bf5+ {[%clk 0:00:06]} 40. Kh2 {[%clk 0:00:38]}  f3 {[%clk 0:00:06]} 41. Bxf3 {[%clk 0:00:36]}  Ke5 {[%clk 0:00:05]} 42. Qb8+ {[%clk 0:00:35]}  Kf6 {[%clk 0:00:06]} 43. a4 {[%clk 0:00:34]}  Bg6 {[%clk 0:00:06]} 44. Qd8+ {[%clk 0:00:33]}  Kf5 {[%clk 0:00:05]} 45. a5 {[%clk 0:00:32]}  Kf4 {[%clk 0:00:06]} 46. Bd1 {[%clk 0:00:27]}  Be4 {[%clk 0:00:06]} 47. Qf6+ {[%clk 0:00:26]}  Ke3 {[%clk 0:00:05]} 48. Qxe6 {[%clk 0:00:24]}  Rg2+ {[%clk 0:00:05]} 49. Kh3 {[%clk 0:00:24]}  Rf2 {[%clk 0:00:05]} 50. Qxh6+ {[%clk 0:00:23]}  Kd3 {[%clk 0:00:03]} 51. a6 {[%clk 0:00:21]}  Bf5+ {[%clk 0:00:00]} 52. Kg3 {[%clk 0:00:20]} 1-0


[Site "https://www.chess.com"]

[Event "Titled Tuesday Blitz July 25 Late 2023"]
[White "Roberson, Peter T"]
[Black "campochess"]
[WhiteFideId "412384"]
[WhiteElo "2492"]
[BlackElo "2180"]
[Result "1-0"]
[Round "5"]
[TimeControl "180+2"]
[Date "2023.07.25"]
[WhiteClock "0:00:05"]
[BlackClock "0:00:09"]
[Board "111"]

1. c4 {[%clk 0:03:00]}  e6 {[%clk 0:02:59]} 2. d4 {[%clk 0:03:00]}  c6 {[%clk 0:02:59]} 3. Nc3 {[%clk 0:02:52]}  d5 {[%clk 0:02:59]} 4. e3 {[%clk 0:02:53]}  Bb4 {[%clk 0:02:58]} 5. Bd3 {[%clk 0:02:46]}  Nf6 {[%clk 0:02:57]} 6. Ne2 {[%clk 0:02:46]}  Ne4 {[%clk 0:02:57]} 7. O-O {[%clk 0:02:46]}  f5 {[%clk 0:02:54]} 8. f3 {[%clk 0:02:45]}  Bxc3 {[%clk 0:02:46]} 9. fxe4 {[%clk 0:02:41]}  Ba5 {[%clk 0:02:46]} 10. exf5 {[%clk 0:02:40]}  O-O {[%clk 0:02:46]} 11. fxe6 {[%clk 0:02:38]}  Rxf1+ {[%clk 0:02:44]} 12. Qxf1 {[%clk 0:02:38]}  Bxe6 {[%clk 0:02:44]} 13. Nf4 {[%clk 0:02:38]}  Bf7 {[%clk 0:02:43]} 14. cxd5 {[%clk 0:02:38]}  cxd5 {[%clk 0:02:42]} 15. b3 {[%clk 0:02:17]}  Bc3 {[%clk 0:02:37]} 16. Rb1 {[%clk 0:02:16]}  Nd7 {[%clk 0:02:37]} 17. Bxh7+ {[%clk 0:02:06]}  Kxh7 {[%clk 0:02:27]} 18. Qd3+ {[%clk 0:02:05]}  Kg8 {[%clk 0:02:25]} 19. Qxc3 {[%clk 0:02:05]}  Rc8 {[%clk 0:02:25]} 20. Qd2 {[%clk 0:01:58]}  Nf6 {[%clk 0:02:25]} 21. Bb2 {[%clk 0:01:51]}  Ne4 {[%clk 0:02:24]} 22. Qe1 {[%clk 0:01:51]}  Rc2 {[%clk 0:02:20]} 23. Nd3 {[%clk 0:01:48]}  Qg5 {[%clk 0:02:16]} 24. Nf4 {[%clk 0:01:37]}  Nd2 {[%clk 0:02:08]} 25. Kh1 {[%clk 0:01:36]}  Nxb1 {[%clk 0:02:07]} 26. Qxb1 {[%clk 0:01:36]}  Rc6 {[%clk 0:01:59]} 27. h3 {[%clk 0:01:04]}  Qg3 {[%clk 0:01:52]} 28. Qd3 {[%clk 0:00:54]}  Qf2 {[%clk 0:01:49]} 29. Ba3 {[%clk 0:00:45]}  Qe1+ {[%clk 0:01:28]} 30. Kh2 {[%clk 0:00:44]}  Qh4 {[%clk 0:01:21]} 31. Qf5 {[%clk 0:00:36]}  Qf6 {[%clk 0:01:18]} 32. Qd7 {[%clk 0:00:33]}  Be6 {[%clk 0:01:10]} 33. Qxb7 {[%clk 0:00:27]}  Rc2 {[%clk 0:01:09]} 34. Bd6 {[%clk 0:00:17]}  Rxa2 {[%clk 0:01:02]} 35. Be5 {[%clk 0:00:17]}  Qh6 {[%clk 0:01:02]} 36. Nxe6 {[%clk 0:00:15]}  Kh7 {[%clk 0:00:44]} 37. Bf4 {[%clk 0:00:07]}  Qf6 {[%clk 0:00:39]} 38. Qxd5 {[%clk 0:00:07]}  Ra6 {[%clk 0:00:35]} 39. Ng5+ {[%clk 0:00:06]}  Kg6 {[%clk 0:00:34]} 40. Qe4+ {[%clk 0:00:06]}  Qf5 {[%clk 0:00:33]} 41. Qe8+ {[%clk 0:00:05]}  Kf6 {[%clk 0:00:31]} 42. Qf8+ {[%clk 0:00:03]}  Kg6 {[%clk 0:00:30]} 43. Qxf5+ {[%clk 0:00:04]}  Kxf5 {[%clk 0:00:29]} 44. Kg3 {[%clk 0:00:05]}  Ra3 {[%clk 0:00:28]} 45. e4+ {[%clk 0:00:04]}  Kg6 {[%clk 0:00:27]} 46. Kg4 {[%clk 0:00:03]}  Rxb3 {[%clk 0:00:27]} 47. d5 {[%clk 0:00:03]}  Rb7 {[%clk 0:00:27]} 48. d6 {[%clk 0:00:02]}  a5 {[%clk 0:00:26]} 49. e5 {[%clk 0:00:03]}  a4 {[%clk 0:00:23]} 50. e6 {[%clk 0:00:03]}  Kf6 {[%clk 0:00:20]} 51. e7 {[%clk 0:00:02]}  Rb8 {[%clk 0:00:17]} 52. d7 {[%clk 0:00:02]}  Kxe7 {[%clk 0:00:16]} 53. Bxb8 {[%clk 0:00:03]}  Kxd7 {[%clk 0:00:14]} 54. Be5 {[%clk 0:00:04]}  g6 {[%clk 0:00:09]} 55. Ba1 {[%clk 0:00:05]} 1-0


[Site "https://www.chess.com"]

[Event "Titled Tuesday Blitz July 25 Late 2023"]
[White "Alboredo, Julia"]
[Black "Djordjevic, Dejan N"]
[WhiteFideId "2124807"]
[BlackFideId "913316"]
[WhiteElo "2487"]
[BlackElo "2111"]
[Result "1-0"]
[Round "5"]
[TimeControl "180+2"]
[Date "2023.07.25"]
[WhiteClock "0:00:10"]
[BlackClock "0:00:00"]
[Board "112"]

1. e4 {[%clk 0:03:00]}  c5 {[%clk 0:02:58]} 2. Nf3 {[%clk 0:03:00]}  Nc6 {[%clk 0:02:58]} 3. Bc4 {[%clk 0:02:59]}  d6 {[%clk 0:02:58]} 4. O-O {[%clk 0:02:58]}  Nf6 {[%clk 0:02:57]} 5. Nc3 {[%clk 0:02:55]}  Bg4 {[%clk 0:02:57]} 6. h3 {[%clk 0:02:49]}  Bh5 {[%clk 0:02:57]} 7. Be2 {[%clk 0:02:34]}  a6 {[%clk 0:02:54]} 8. a4 {[%clk 0:02:34]}  e6 {[%clk 0:02:52]} 9. d4 {[%clk 0:02:31]}  Bxf3 {[%clk 0:02:51]} 10. Bxf3 {[%clk 0:02:29]}  Nxd4 {[%clk 0:02:45]} 11. e5 {[%clk 0:02:29]}  dxe5 {[%clk 0:02:32]} 12. Bxb7 {[%clk 0:02:27]}  Ra7 {[%clk 0:02:32]} 13. Bf3 {[%clk 0:02:20]}  Bd6 {[%clk 0:02:29]} 14. Ne4 {[%clk 0:02:17]}  Nxe4 {[%clk 0:02:28]} 15. Bxe4 {[%clk 0:02:17]}  Qc7 {[%clk 0:02:14]} 16. c3 {[%clk 0:02:15]}  Nc6 {[%clk 0:02:11]} 17. Qf3 {[%clk 0:02:11]}  Ne7 {[%clk 0:02:10]} 18. Bc2 {[%clk 0:02:09]}  c4 {[%clk 0:02:01]} 19. Rd1 {[%clk 0:02:00]}  O-O {[%clk 0:01:51]} 20. Be3 {[%clk 0:01:58]}  Bc5 {[%clk 0:01:45]} 21. Bg5 {[%clk 0:01:39]}  Rb7 {[%clk 0:01:11]} 22. Rd2 {[%clk 0:01:24]}  Rfb8 {[%clk 0:01:08]} 23. Rad1 {[%clk 0:01:23]}  f5 {[%clk 0:00:47]} 24. Bxe7 {[%clk 0:00:58]}  Bxe7 {[%clk 0:00:43]} 25. g4 {[%clk 0:00:53]}  e4 {[%clk 0:00:39]} 26. Qg2 {[%clk 0:00:40]}  Rd8 {[%clk 0:00:20]} 27. gxf5 {[%clk 0:00:39]}  Rxd2 {[%clk 0:00:17]} 28. Rxd2 {[%clk 0:00:39]}  exf5 {[%clk 0:00:18]} 29. Bd1 {[%clk 0:00:33]}  Qf4 {[%clk 0:00:17]} 30. f3 {[%clk 0:00:20]}  Bc5+ {[%clk 0:00:14]} 31. Kh1 {[%clk 0:00:18]}  h6 {[%clk 0:00:07]} 32. fxe4 {[%clk 0:00:18]}  fxe4 {[%clk 0:00:07]} 33. Rd8+ {[%clk 0:00:15]}  Kh7 {[%clk 0:00:06]} 34. Bh5 {[%clk 0:00:15]}  Rb6 {[%clk 0:00:06]} 35. Rd1 {[%clk 0:00:15]}  Rf6 {[%clk 0:00:05]} 36. Be2 {[%clk 0:00:13]}  Qe3 {[%clk 0:00:05]} 37. Bf1 {[%clk 0:00:12]}  Rf2 {[%clk 0:00:05]} 38. Qg4 {[%clk 0:00:10]}  Qf3+ {[%clk 0:00:02]} 39. Qxf3 {[%clk 0:00:10]}  Rxf3 {[%clk 0:00:02]} 40. Bg2 {[%clk 0:00:10]}  Re3 {[%clk 0:00:02]} 41. Rd7 {[%clk 0:00:10]}  Kg6 {[%clk 0:00:01]} 42. Rc7 {[%clk 0:00:09]}  Bd6 {[%clk 0:00:00]} 43. Rc6 {[%clk 0:00:10]} 1-0


[Site "https://www.chess.com"]

[Event "Titled Tuesday Blitz July 25 Late 2023"]
[White "marik_spb"]
[Black "Graham, Nathaniel"]
[BlackFideId "2007983"]
[WhiteElo "2478"]
[BlackElo "2038"]
[Result "1-0"]
[Round "5"]
[TimeControl "180+2"]
[Date "2023.07.25"]
[WhiteClock "0:00:01"]
[BlackClock "0:00:00"]
[Board "113"]

1. e4 {[%clk 0:02:33]}  c5 {[%clk 0:02:33]} 2. c3 {[%clk 0:02:32]}  d5 {[%clk 0:02:31]} 3. exd5 {[%clk 0:02:33]}  Qxd5 {[%clk 0:02:32]} 4. d4 {[%clk 0:02:34]}  Nf6 {[%clk 0:02:32]} 5. dxc5 {[%clk 0:02:34]}  Qxc5 {[%clk 0:02:31]} 6. Be3 {[%clk 0:02:34]}  Qa5 {[%clk 0:02:30]} 7. Na3 {[%clk 0:02:34]}  Nc6 {[%clk 0:02:25]} 8. Nf3 {[%clk 0:02:33]}  Bg4 {[%clk 0:02:09]} 9. Be2 {[%clk 0:02:15]}  e5 {[%clk 0:02:00]} 10. Nc4 {[%clk 0:02:11]}  Qc7 {[%clk 0:02:00]} 11. O-O {[%clk 0:01:09]}  Be7 {[%clk 0:01:59]} 12. Re1 {[%clk 0:01:03]}  O-O {[%clk 0:01:58]} 13. h3 {[%clk 0:01:00]}  Rfd8 {[%clk 0:01:37]} 14. Qb3 {[%clk 0:00:58]}  Be6 {[%clk 0:01:36]} 15. Qc2 {[%clk 0:00:55]}  h6 {[%clk 0:01:24]} 16. Rad1 {[%clk 0:00:54]}  Rac8 {[%clk 0:01:17]} 17. Rxd8+ {[%clk 0:00:53]}  Rxd8 {[%clk 0:01:16]} 18. Rd1 {[%clk 0:00:54]}  Rxd1+ {[%clk 0:01:13]} 19. Qxd1 {[%clk 0:00:55]}  b5 {[%clk 0:00:59]} 20. Ncd2 {[%clk 0:00:49]}  b4 {[%clk 0:00:49]} 21. cxb4 {[%clk 0:00:45]}  Bxb4 {[%clk 0:00:40]} 22. a3 {[%clk 0:00:44]}  Ba5 {[%clk 0:00:37]} 23. b4 {[%clk 0:00:42]}  Bb6 {[%clk 0:00:35]} 24. Bxb6 {[%clk 0:00:29]}  Qxb6 {[%clk 0:00:35]} 25. Nc4 {[%clk 0:00:29]}  Bxc4 {[%clk 0:00:13]} 26. Bxc4 {[%clk 0:00:30]}  e4 {[%clk 0:00:12]} 27. Ne1 {[%clk 0:00:13]}  e3 {[%clk 0:00:07]} 28. fxe3 {[%clk 0:00:09]}  Qxe3+ {[%clk 0:00:07]} 29. Kh1 {[%clk 0:00:08]}  Ne4 {[%clk 0:00:07]} 30. Qb1 {[%clk 0:00:05]}  Nd2 {[%clk 0:00:03]} 31. Qc1 {[%clk 0:00:05]}  Nxc4 {[%clk 0:00:01]} 32. Qxc4 {[%clk 0:00:04]}  Qxe1+ {[%clk 0:00:01]} 33. Kh2 {[%clk 0:00:05]}  Qe5+ {[%clk 0:00:02]} 34. Kh1 {[%clk 0:00:06]}  Qe1+ {[%clk 0:00:02]} 35. Kh2 {[%clk 0:00:06]}  Qe5+ {[%clk 0:00:03]} 36. Kh1 {[%clk 0:00:06]}  Nd4 {[%clk 0:00:04]} 37. Qa6 {[%clk 0:00:02]}  Qe1+ {[%clk 0:00:03]} 38. Kh2 {[%clk 0:00:02]}  Ne2 {[%clk 0:00:04]} 39. Qxa7 {[%clk 0:00:01]}  Qf2 {[%clk 0:00:00]} 40. Qxf2 {[%clk 0:00:01]} 1-0


[Site "https://www.chess.com"]

[Event "Titled Tuesday Blitz July 25 Late 2023"]
[White "Miladinovic, Igor"]
[Black "Uzcategui Rodriguez, Alejandro"]
[WhiteFideId "4203380"]
[BlackFideId "3903400"]
[WhiteElo "2807"]
[BlackElo "2409"]
[Result "1-0"]
[Round "5"]
[TimeControl "180+2"]
[Date "2023.07.25"]
[WhiteClock "0:02:35"]
[BlackClock "0:01:36"]
[Board "116"]

1. d4 {[%clk 0:03:00]}  Nf6 {[%clk 0:02:57]} 2. Bg5 {[%clk 0:02:59]}  e6 {[%clk 0:02:55]} 3. e3 {[%clk 0:02:59]}  Be7 {[%clk 0:02:54]} 4. c3 {[%clk 0:03:00]}  b6 {[%clk 0:02:53]} 5. Nd2 {[%clk 0:03:00]}  Bb7 {[%clk 0:02:53]} 6. Bxf6 {[%clk 0:02:58]}  gxf6 {[%clk 0:02:51]} 7. Ngf3 {[%clk 0:02:59]}  c5 {[%clk 0:02:50]} 8. g3 {[%clk 0:02:55]}  Nc6 {[%clk 0:02:49]} 9. Bg2 {[%clk 0:02:55]}  d5 {[%clk 0:02:49]} 10. O-O {[%clk 0:02:55]}  Qc7 {[%clk 0:02:48]} 11. c4 {[%clk 0:02:52]}  dxc4 {[%clk 0:02:44]} 12. Nxc4 {[%clk 0:02:52]}  cxd4 {[%clk 0:02:44]} 13. exd4 {[%clk 0:02:48]}  Nb4 {[%clk 0:02:38]} 14. Rc1 {[%clk 0:02:43]}  Qd7 {[%clk 0:02:32]} 15. Nfe5 {[%clk 0:02:42]}  fxe5 {[%clk 0:02:21]} 16. Nxe5 {[%clk 0:02:43]}  Qd6 {[%clk 0:01:45]} 17. Bxb7 {[%clk 0:02:36]}  Rd8 {[%clk 0:01:45]} 18. a3 {[%clk 0:02:36]}  Nd5 {[%clk 0:01:42]} 19. Bc6+ {[%clk 0:02:35]}  Kf8 {[%clk 0:01:36]} 20. Qh5 {[%clk 0:02:35]} 1-0


[Site "https://www.chess.com"]

[Event "Titled Tuesday Blitz July 25 Late 2023"]
[White "Skvortsov, Andrei"]
[Black "Al Mukhaini, Shima"]
[WhiteFideId "24108600"]
[BlackFideId "22005854"]
[WhiteElo "2725"]
[BlackElo "2408"]
[Result "1/2-1/2"]
[Round "5"]
[TimeControl "180+2"]
[Date "2023.07.25"]
[WhiteClock "0:00:24"]
[BlackClock "0:00:06"]
[Board "117"]

1. d4 {[%clk 0:03:00]}  Nf6 {[%clk 0:02:58]} 2. c4 {[%clk 0:03:01]}  e6 {[%clk 0:02:57]} 3. Nf3 {[%clk 0:03:01]}  b6 {[%clk 0:02:57]} 4. g3 {[%clk 0:03:00]}  Bb7 {[%clk 0:02:57]} 5. Bg2 {[%clk 0:03:00]}  Bb4+ {[%clk 0:02:57]} 6. Nbd2 {[%clk 0:02:59]}  O-O {[%clk 0:02:56]} 7. O-O {[%clk 0:02:59]}  d6 {[%clk 0:02:53]} 8. Nb3 {[%clk 0:02:55]}  d5 {[%clk 0:02:48]} 9. Ne5 {[%clk 0:02:55]}  Bd6 {[%clk 0:02:45]} 10. f4 {[%clk 0:02:53]}  c6 {[%clk 0:02:33]} 11. c5 {[%clk 0:02:52]}  Bxe5 {[%clk 0:02:27]} 12. dxe5 {[%clk 0:02:48]}  Nfd7 {[%clk 0:02:26]} 13. Be3 {[%clk 0:02:48]}  Na6 {[%clk 0:02:18]} 14. cxb6 {[%clk 0:02:41]}  axb6 {[%clk 0:02:17]} 15. Bf2 {[%clk 0:02:38]}  c5 {[%clk 0:02:13]} 16. Rc1 {[%clk 0:02:36]}  Qb8 {[%clk 0:02:03]} 17. Nd2 {[%clk 0:02:32]}  f6 {[%clk 0:01:51]} 18. exf6 {[%clk 0:02:29]}  Nxf6 {[%clk 0:01:51]} 19. a3 {[%clk 0:02:27]}  d4 {[%clk 0:01:50]} 20. Qb3 {[%clk 0:02:19]}  Bd5 {[%clk 0:01:43]} 21. Nc4 {[%clk 0:02:18]}  b5 {[%clk 0:01:29]} 22. Bxd5 {[%clk 0:02:18]}  Nxd5 {[%clk 0:01:28]} 23. Ne5 {[%clk 0:02:16]}  Rd8 {[%clk 0:01:11]} 24. Rfd1 {[%clk 0:02:12]}  Qb6 {[%clk 0:01:07]} 25. Qf3 {[%clk 0:02:11]}  g6 {[%clk 0:01:04]} 26. h4 {[%clk 0:02:10]}  Nac7 {[%clk 0:00:55]} 27. b4 {[%clk 0:02:06]}  Nc3 {[%clk 0:00:45]} 28. bxc5 {[%clk 0:02:05]}  Qxc5 {[%clk 0:00:45]} 29. Rxd4 {[%clk 0:01:53]}  Nxe2+ {[%clk 0:00:37]} 30. Kg2 {[%clk 0:01:35]}  Qxc1 {[%clk 0:00:37]} 31. Rxd8+ {[%clk 0:01:28]}  Rxd8 {[%clk 0:00:36]} 32. Qxe2 {[%clk 0:01:29]}  Rd2 {[%clk 0:00:27]} 33. Qe3 {[%clk 0:01:22]}  Qc2 {[%clk 0:00:20]} 34. h5 {[%clk 0:01:20]}  Nd5 {[%clk 0:00:20]} 35. Qa7 {[%clk 0:01:16]}  Rxf2+ {[%clk 0:00:10]} 36. Qxf2 {[%clk 0:01:12]}  Qxf2+ {[%clk 0:00:08]} 37. Kxf2 {[%clk 0:01:13]}  gxh5 {[%clk 0:00:08]} 38. Nc6 {[%clk 0:01:02]}  Nc3 {[%clk 0:00:09]} 39. Nd4 {[%clk 0:01:01]}  Kf7 {[%clk 0:00:07]} 40. Kf3 {[%clk 0:01:01]}  Kf6 {[%clk 0:00:08]} 41. Nc2 {[%clk 0:00:56]}  e5 {[%clk 0:00:06]} 42. Ne3 {[%clk 0:00:53]}  exf4 {[%clk 0:00:04]} 43. Kxf4 {[%clk 0:00:52]}  Ke6 {[%clk 0:00:04]} 44. Kg5 {[%clk 0:00:51]}  Nb1 {[%clk 0:00:03]} 45. Nc2 {[%clk 0:00:50]}  Kd5 {[%clk 0:00:03]} 46. Kxh5 {[%clk 0:00:50]}  Kc4 {[%clk 0:00:03]} 47. Kh6 {[%clk 0:00:51]}  Kc3 {[%clk 0:00:04]} 48. Ne3 {[%clk 0:00:50]}  Nxa3 {[%clk 0:00:04]} 49. g4 {[%clk 0:00:50]}  Kd3 {[%clk 0:00:04]} 50. Nd5 {[%clk 0:00:48]}  Kd4 {[%clk 0:00:05]} 51. Nb6 {[%clk 0:00:48]}  b4 {[%clk 0:00:05]} 52. g5 {[%clk 0:00:48]}  b3 {[%clk 0:00:05]} 53. Na4 {[%clk 0:00:49]}  Kc4 {[%clk 0:00:05]} 54. Kxh7 {[%clk 0:00:49]}  Kb4 {[%clk 0:00:05]} 55. Nb2 {[%clk 0:00:47]}  Kc3 {[%clk 0:00:06]} 56. g6 {[%clk 0:00:41]}  Kxb2 {[%clk 0:00:06]} 57. g7 {[%clk 0:00:42]}  Ka1 {[%clk 0:00:06]} 58. g8=Q {[%clk 0:00:42]}  b2 {[%clk 0:00:06]} 59. Qg7 {[%clk 0:00:40]}  Ka2 {[%clk 0:00:05]} 60. Qf7+ {[%clk 0:00:40]}  Ka1 {[%clk 0:00:05]} 61. Qf6 {[%clk 0:00:40]}  Ka2 {[%clk 0:00:05]} 62. Qe6+ {[%clk 0:00:40]}  Ka1 {[%clk 0:00:05]} 63. Qe5 {[%clk 0:00:41]}  Ka2 {[%clk 0:00:05]} 64. Qd5+ {[%clk 0:00:41]}  Ka1 {[%clk 0:00:06]} 65. Qd4 {[%clk 0:00:41]}  Ka2 {[%clk 0:00:06]} 66. Qd5+ {[%clk 0:00:41]}  Ka1 {[%clk 0:00:06]} 67. Qe5 {[%clk 0:00:40]}  Ka2 {[%clk 0:00:06]} 68. Qe6+ {[%clk 0:00:37]}  Ka1 {[%clk 0:00:06]} 69. Qf6 {[%clk 0:00:37]}  Ka2 {[%clk 0:00:06]} 70. Qf2 {[%clk 0:00:38]}  Ka1 {[%clk 0:00:06]} 71. Qd4 {[%clk 0:00:29]}  Ka2 {[%clk 0:00:06]} 72. Qd2 {[%clk 0:00:26]}  Ka1 {[%clk 0:00:06]} 73. Qxb2+ {[%clk 0:00:24]}  Kxb2 {[%clk 0:00:06]} 1/2-1/2


[Site "https://www.chess.com"]

[Event "Titled Tuesday Blitz July 25 Late 2023"]
[White "Herman, Daniel"]
[Black "Petesch, Gabriel"]
[WhiteFideId "30935008"]
[BlackFideId "2032465"]
[WhiteElo "2403"]
[BlackElo "2578"]
[Result "1-0"]
[Round "5"]
[TimeControl "180+2"]
[Date "2023.07.25"]
[WhiteClock "0:00:27"]
[BlackClock "0:00:00"]
[Board "118"]

1. c4 {[%clk 0:03:00]}  c5 {[%clk 0:02:57]} 2. Nc3 {[%clk 0:03:00]}  Nf6 {[%clk 0:02:57]} 3. g3 {[%clk 0:02:58]}  Nc6 {[%clk 0:02:52]} 4. Bg2 {[%clk 0:02:58]}  h5 {[%clk 0:02:48]} 5. Nf3 {[%clk 0:02:56]}  d6 {[%clk 0:02:38]} 6. d4 {[%clk 0:02:46]}  cxd4 {[%clk 0:02:28]} 7. Nxd4 {[%clk 0:02:47]}  h4 {[%clk 0:02:24]} 8. Qa4 {[%clk 0:02:23]}  Bd7 {[%clk 0:02:06]} 9. Nxc6 {[%clk 0:02:20]}  bxc6 {[%clk 0:01:39]} 10. Bxc6 {[%clk 0:02:19]}  hxg3 {[%clk 0:01:34]} 11. Bxd7+ {[%clk 0:02:19]}  Nxd7 {[%clk 0:01:31]} 12. fxg3 {[%clk 0:02:18]}  e6 {[%clk 0:01:24]} 13. Bf4 {[%clk 0:02:09]}  g5 {[%clk 0:01:18]} 14. Be3 {[%clk 0:02:04]}  Be7 {[%clk 0:01:15]} 15. O-O-O {[%clk 0:02:01]}  Kf8 {[%clk 0:00:40]} 16. c5 {[%clk 0:01:48]}  d5 {[%clk 0:00:36]} 17. Nxd5 {[%clk 0:01:47]}  Qc8 {[%clk 0:00:26]} 18. Nxe7 {[%clk 0:01:34]}  Kxe7 {[%clk 0:00:27]} 19. Kb1 {[%clk 0:01:25]}  f6 {[%clk 0:00:22]} 20. c6 {[%clk 0:01:12]}  Ne5 {[%clk 0:00:22]} 21. Rc1 {[%clk 0:00:59]}  Qc7 {[%clk 0:00:20]} 22. h4 {[%clk 0:00:53]}  g4 {[%clk 0:00:14]} 23. Bf4 {[%clk 0:00:52]}  Rad8 {[%clk 0:00:11]} 24. Rhd1 {[%clk 0:00:46]}  Rxd1 {[%clk 0:00:09]} 25. Rxd1 {[%clk 0:00:47]}  Qxc6 {[%clk 0:00:07]} 26. Qxa7+ {[%clk 0:00:45]}  Nd7 {[%clk 0:00:07]} 27. Bd6+ {[%clk 0:00:31]}  Kf7 {[%clk 0:00:06]} 28. Ba3 {[%clk 0:00:30]}  Rc8 {[%clk 0:00:05]} 29. Qxd7+ {[%clk 0:00:29]}  Kg6 {[%clk 0:00:04]} 30. Qxc6 {[%clk 0:00:29]}  Rc7 {[%clk 0:00:00]} 31. Qxc7 {[%clk 0:00:27]} 1-0


[Site "https://www.chess.com"]

[Event "Titled Tuesday Blitz July 25 Late 2023"]
[White "K2JW"]
[Black "Krishnan, Varun"]
[BlackFideId "5054508"]
[WhiteElo "2364"]
[BlackElo "2576"]
[Result "0-1"]
[Round "5"]
[TimeControl "180+2"]
[Date "2023.07.25"]
[WhiteClock "0:00:00"]
[BlackClock "0:00:12"]
[Board "119"]

1. e4 {[%clk 0:01:51]}  c6 {[%clk 0:03:00]} 2. d4 {[%clk 0:01:50]}  d5 {[%clk 0:03:00]} 3. Nd2 {[%clk 0:01:51]}  dxe4 {[%clk 0:02:59]} 4. Nxe4 {[%clk 0:01:52]}  Bf5 {[%clk 0:02:58]} 5. Ng3 {[%clk 0:01:52]}  Bg6 {[%clk 0:02:59]} 6. h4 {[%clk 0:01:53]}  h6 {[%clk 0:02:59]} 7. Nf3 {[%clk 0:01:53]}  Nf6 {[%clk 0:02:55]} 8. Ne5 {[%clk 0:01:52]}  Bh7 {[%clk 0:02:54]} 9. Bc4 {[%clk 0:01:43]}  e6 {[%clk 0:02:54]} 10. Qe2 {[%clk 0:01:40]}  Nd5 {[%clk 0:02:45]} 11. c3 {[%clk 0:01:24]}  Nd7 {[%clk 0:02:43]} 12. h5 {[%clk 0:01:22]}  Nxe5 {[%clk 0:02:41]} 13. dxe5 {[%clk 0:01:23]}  Bc5 {[%clk 0:02:37]} 14. O-O {[%clk 0:01:23]}  Qh4 {[%clk 0:02:26]} 15. Qf3 {[%clk 0:01:07]}  Qxc4 {[%clk 0:02:23]} 16. Bd2 {[%clk 0:00:52]}  O-O {[%clk 0:02:17]} 17. Rfe1 {[%clk 0:00:51]}  Rad8 {[%clk 0:02:12]} 18. Ne4 {[%clk 0:00:51]}  Bxe4 {[%clk 0:02:00]} 19. Rxe4 {[%clk 0:00:50]}  Qb5 {[%clk 0:01:59]} 20. b4 {[%clk 0:00:31]}  Nxb4 {[%clk 0:01:37]} 21. Bxh6 {[%clk 0:00:30]}  Kh7 {[%clk 0:00:49]} 22. Bxg7 {[%clk 0:00:25]}  Rg8 {[%clk 0:00:43]} 23. cxb4 {[%clk 0:00:18]}  Bd4 {[%clk 0:00:35]} 24. Rd1 {[%clk 0:00:16]}  Bxf2+ {[%clk 0:00:29]} 25. Kxf2 {[%clk 0:00:15]}  Rxd1 {[%clk 0:00:27]} 26. Qxd1 {[%clk 0:00:08]}  Rxg7 {[%clk 0:00:27]} 27. Qf3 {[%clk 0:00:07]}  Qd5 {[%clk 0:00:21]} 28. h6 {[%clk 0:00:06]}  Qd2+ {[%clk 0:00:21]} 29. Kg1 {[%clk 0:00:04]}  Qc1+ {[%clk 0:00:20]} 30. Kf2 {[%clk 0:00:03]}  Qd2+ {[%clk 0:00:20]} 31. Kg1 {[%clk 0:00:03]}  Qxh6 {[%clk 0:00:18]} 32. Rf4 {[%clk 0:00:03]}  Kg8 {[%clk 0:00:17]} 33. Rf6 {[%clk 0:00:03]}  Qc1+ {[%clk 0:00:17]} 34. Kf2 {[%clk 0:00:03]}  Qd2+ {[%clk 0:00:17]} 35. Kg1 {[%clk 0:00:02]}  Qd4+ {[%clk 0:00:17]} 36. Qf2 {[%clk 0:00:02]}  Qxe5 {[%clk 0:00:16]} 37. Rf3 {[%clk 0:00:03]}  Qa1+ {[%clk 0:00:16]} 38. Kh2 {[%clk 0:00:02]}  Rh7+ {[%clk 0:00:15]} 39. Kg3 {[%clk 0:00:03]}  Qe5+ {[%clk 0:00:15]} 40. Rf4 {[%clk 0:00:03]}  Rg7+ {[%clk 0:00:15]} 41. Kf3 {[%clk 0:00:04]}  Qd5+ {[%clk 0:00:15]} 42. Ke3 {[%clk 0:00:01]}  Rxg2 {[%clk 0:00:14]} 43. Qf3 {[%clk 0:00:01]}  Qd2+ {[%clk 0:00:13]} 44. Ke4 {[%clk 0:00:00]}  Re2+ {[%clk 0:00:12]} 0-1


[Site "https://www.chess.com"]